Cogmind - Beta 13 @@@ ROGUE MODE // 2024.04.04 @ 17:47:52 Player: Sixten Result: Smashed by cave-in Performance ------------- Evolutions (0) 0 Regions Visited (1) 200 Robots Destroyed (22) 110 Value Destroyed (244) 244 Prototype IDs (0) 0 Alien Tech Used (0) 0 Bonus (0) 0 TOTAL SCORE: 554 Bonus ------- None Cogmind --------- Core Integrity 0/250 Matter 257/300 Energy 125/125 System Corruption 14% Temperature Cool (3) Movement Treading (240) Ox1 Location -10/Materials Parts ------- > --- POWER (1) -------- Light Ion Engine > --- PROPULSION (2) --- Light Treads > --- UTILITY (2) ------ Large Storage Unit > --- WEAPON (2) ------- (None) > --- INVENTORY (15) --- Flight Unit Flight Unit Flight Unit Light Cannon Peak State ------------ > --- POWER ------------ Light Ion Engine > --- PROPULSION ------- Light Treads Light Treads > --- UTILITY ---------- Large Storage Unit Terrain Scanner > --- WEAPON ----------- Medium Laser Light Assault Rifle > --- INVENTORY -------- Flight Unit Small Storage Unit [Rating: 7] Favorites ----------- Power Light Ion Engine Engine Light Ion Engine Propulsion Flight Unit Treads Light Treads Flight Unit Flight Unit Utility Large Storage Unit Device Terrain Scanner Storage Large Storage Unit Weapon Small Laser Energy Gun Small Laser Ballistic Gun Light Assault Rifle Launcher Grenade Launcher Build | -11 -10 ------- Run | Yrd Mat Slots Evolved . | . . Power . | . . Propulsion . | . . Utility . | . . Weapon . | . . Parts Attached 20 | 6 14 Power 2 | . 2 Engine 2 | . 2 Core . | . . Reactor . | . . Propulsion 7 | 2 5 Treads 4 | 2 2 Leg . | . . Wheel . | . . Hover . | . . Flight 3 | . 3 Utility 3 | 1 2 Device 1 | . 1 Storage 2 | 1 1 Processor . | . . Hackware . | . . Protection . | . . Artifact . | . . Weapon 8 | 3 5 Energy Gun 4 | 2 2 Energy Cannon . | . . Ballistic Gun 3 | 1 2 Ballistic Cannon . | . . Launcher 1 | . 1 Special Weapon . | . . Impact Weapon . | . . Slashing Weapon . | . . Piercing Weapon . | . . Special Melee Weapon . | . . Unidentified Prototypes . | . . Parts Lost 7 | . 7 Power 1 | . 1 Propulsion 2 | . 2 Utility 1 | . 1 Weapon 3 | . 3 Highest Loss Streak 3 | . 3 To Critical Strikes . | . . Average Slot Usage (%) 80 | . 80 Engine 9 | . 9 Treads 12 | . 12 Flight 14 | . 14 Device 4 | . 4 Storage 13 | . 13 Energy Gun 12 | . 12 Ballistic Gun 5 | . 5 Launcher 7 | . 7 Naked Turns . | . . Heaviest Build 27 | 8 27 Greatest Support 40 | 40 40 Greatest Overweight (x) 7 | . 7 Average Overweight (x) 1 | . 1 Largest Inventory Capacity 15 | 8 15 Average Capacity 13 | 7 13 Most Carried 4 | . 4 Average Carried 1 | . 1 Final Capacity 15 | 8 15 Final Carried 4 | . 4 Class Distribution -------------------- 100% | Mutant Dominant Class ---------------- Mutant | -10/Materials Resources | -11 -10 ----------- Run | Yrd Mat Matter Collected 511 | 174 337 Remotely . | . . Salvage Created 392 | . 392 Parts 40 | . 40 Haulers Intercepted 1 | . 1 Recyclers Shooed 1 | . 1 Parts Field Recycled . | . . Retrieved Matter . | . . Parts Self-Destructed . | . . Prevented . | . . Kills | -11 -10 ------- Run | Yrd Mat Combat Hostiles Destroyed 12 | . 12 Guns 11 | . 11 AOE 1 | . 1 Classes Destroyed 6 | . 6 Worker 4 | . 4 Builder 4 | . 4 Hauler 1 | . 1 Watcher 1 | . 1 Swarmer 9 | . 9 Grunt 3 | . 3 Best Kill Streak 3 | . 3 Combat Bots Only 3 | . 3 Max Kills in Single Turn 2 | . 2 Gunslinging . | . . Exploded 1 | . 1 Melee . | . . Uniques/NPCs Destroyed . | . . Combat | -11 -10 -------- Run | Yrd Mat Hostile Shots Fired 96 | . 96 Missed 36 | . 36 Damage Taken 927 | . 927 Core 257 | . 257 Absorbed by Shields . | . . Core Remaining (%) 100 | 100 . Volleys Fired 87 | . 87 Largest 2 | . 2 Hottest 70 | . 70 Shots Fired 133 | . 133 Gun 121 | . 121 Cannon . | . . Launcher 12 | . 12 Special . | . . Kinetic 61 | . 61 Thermal 60 | . 60 Explosive 12 | . 12 Electromagnetic . | . . Robot Hit Streak 8 | . 8 Robot Miss Streak 4 | . 4 Penetration Max . | . . Secondary Targets 1 | . 1 Max Gunslinging Chain 1 | . 1 Shots Hit Robots 74 | . 74 Core Hits 38 | . 38 Critical Kills . | . . Critical Parts Destroyed . | . . Critical Strikes 1 | . 1 Burn 1 | . 1 Melee Attacks . | . . Impact . | . . Slashing . | . . Piercing . | . . Sneak Attacks . | . . Combat Hostiles . | . . Follow-up Attacks . | . . Damage Inflicted 1103 | . 1103 Guns 708 | . 708 Cannons . | . . Explosions 391 | . 391 Melee . | . . Ramming 4 | . 4 Kinetic 328 | . 328 Thermal 380 | . 380 Explosive 391 | . 391 Electromagnetic . | . . Impact . | . . Slashing . | . . Piercing . | . . Highest Corruption 3 | . 3 Average Corruption 2 | . 2 Corruption Purged . | . . Corruption Blocked . | . . Effects 6 | . 6 Message Errors 2 | . 2 Matter Fused 2 | . 2 Heat Flow Errors 1 | . 1 Data Loss (minor) 1 | . 1 Overload Shots . | . . Overflow Damage 12 | . 12 Projectiles . | . . Explosions 12 | . 12 Melee . | . . Knockbacks . | . . Impact . | . . Kinetic . | . . Secondary . | . . Self-Inflicted Damage 97 | . 97 Shots 4 | . 4 Rammed 1 | . 1 Targets Rammed 1 | . 1 Kicked . | . . Crushed . | . . Highest Temperature 187 | . 187 Average Temperature 36 | . 36 Received Heat Transfer 78 | . 78 Siege Activations . | . . Robots Corrupted . | . . Combat Hostiles . | . . Parts Fried . | . . Impact Corruptions . | . . Robots Melted . | . . Combat Hostiles . | . . Parts Melted 2 | . 2 Heat Transferred 1056 | . 1056 Parts Sabotaged . | . . Parts Stolen . | . . Parts Stripped . | . . Power Chain Reactions . | . . Alert | -11 -10 ------- Run | Yrd Mat Peak Influence 185 | . 185 Initial . | . . Average 50 | . 53 Maximum Alert Level . | . . Low Security (%) 100 | 100 100 Level 1 . | . . Level 2 . | . . Level 3 . | . . Level 4 . | . . Level 5 . | . . High Security . | . . Max Security . | . . Squads Dispatched 1 | . 1 Investigation . | . . Extermination . | . . Reinforcement 1 | . 1 Assault . | . . Garrison . | . . Intercept . | . . Searches Triggered . | . . Construction Impeded . | . . Haulers Reinforced . | . . Active Scanning Responses . | . . Cargo Convoy Interrupts . | . . Stealth | -11 -10 --------- Run | Yrd Mat Distress Signals 2 | . 2 Communications Jammed . | . . Distress Signals . | . . Times Spotted 27 | . 27 Peak Tracking Total 5 | . 5 Tactical Retreats . | . . Traps | -11 -10 ------- Run | Yrd Mat Traps Triggered 5 | . 5 Indirectly . | . . Trap Hack Attempts . | . . Triggered . | . . Disarmed . | . . Reprogrammed . | . . Reused . | . . Traps Extracted . | . . Installed . | . . Triggered . | . . Machines | -11 -10 ---------- Run | Yrd Mat Machines Disabled 1 | . 1 Max in Single Turn 1 | . 1 Machines Repaired . | . . Machines Dismantled . | . . Machines Sabotaged . | . . Overloaded Fab Kills . | . . Hacking | -11 -10 --------- Run | Yrd Mat Machines Accessed . | . . Terminals . | . . Fabricators . | . . Repair Stations . | . . Recycling Units . | . . Scanalyzers . | . . Garrison Access . | . . Total Hacks . | . . Successful . | . . Failed . | . . Catastrophic . | . . Database Lockouts . | . . Manual . | . . Terminals . | . . Fabricators . | . . Repair Stations . | . . Recycling Units . | . . Scanalyzers . | . . Garrison Access . | . . Terminal Hacks . | . . Fabricator Hacks . | . . Repair Station Hacks . | . . Recycling Unit Hacks . | . . Scanalyzer . | . . Garrison Access Hacks . | . . Unauthorized Hacks . | . . Terminals . | . . Fabricators . | . . Repair Stations . | . . Recycling Units . | . . Scanalyzers . | . . Garrison Access . | . . Data Cores Recovered . | . . Used . | . . Hacking Detections . | . . Full Trace Events . | . . Feedback Events . | . . Feedback Blocked . | . . Robot Schematics Acquired . | . . Robots Built . | . . Authchips . | . . Time . | . . Total Robot Build Rating . | . . Part Schematics Acquired . | . . Parts Built . | . . Authchips . | . . Time . | . . Total Part Build Rating . | . . Parts Repaired . | . . Time . | . . Parts Recycled . | . . Recycled Matter . | . . Retrieved Matter . | . . Retrieved Components . | . . Parts Scanalyzed . | . . Part Schematics Acquired . | . . Parts Damaged . | . . Bothacking | -11 -10 ------------ Run | Yrd Mat Used RIF Installer . | . . Robots Hacked . | . . Non-combat . | . . Combat . | . . Robot Hacks Applied . | . . Relay Couplers Released . | . . Fabnet Peak Effective % . | . . Robots Rewired . | . . Allies Hacked . | . . Hacks Repelled . | . . Allies | -11 -10 -------- Run | Yrd Mat Total Allies . | . . Largest Group . | . . Highest-Rated Group . | . . Highest-Rated Ally . | . . Total Orders . | . . Ally Attacks . | . . Total Damage . | . . Kills . | . . Allies Corrupted . | . . Allies Melted . | . . Intel | -11 -10 ------- Run | Yrd Mat Robot Analysis Total . | . . Derelict Logs Recovered . | . . Drone Launches . | . . Drone Recoveries . | . . Exploration | -11 -10 ------------- Run | Yrd Mat Turns Passed 2182 | 112 2070 Spaces Moved 897 | 67 830 Core 20 | 4 16 Treads 582 | 63 519 Legs . | . . Wheels . | . . Hover . | . . Flight 295 | . 295 Fastest Speed 50 | 50 160 Average Speed 215 | 153 220 Slowest Speed 520 | 160 520 Overloaded Moves . | . . Propulsion Burnouts . | . . Robots Hopped . | . . Cave-ins Triggered 1 | . 1 Exploration Rate (%) 44 | 6 82 Regions Visited 1 Branch Regions . Pre-discovered Areas . | . . Known Exits Taken . | . . Unknown Exits Taken 1 | 1 . Scrap Searched . | . . Spaces Dug . | . . Terrain Destroyed 70 | . 70 Melee . | . . Projectile . | . . AOE 70 | . 70 Terrain Rammed . | . . Walls Destroyed . | . . Machines Disabled . | . . Actions | -11 -10 --------- Run | Yrd Mat Total 1021 | 74 947 Wait 8 | . 8 Move 896 | 66 830 Hop . | . . Pick Up 5 | . 5 Fast Attach 15 | 6 9 Attach 2 | . 2 Detach 2 | 1 1 Swap 3 | . 3 Drop 2 | 1 1 Fire 87 | . 87 Melee . | . . Ram 1 | . 1 Kick . | . . Crush . | . . Escape Stasis . | . . Rewire . | . . Trap . | . . Miscellaneous . | . . Route ------- -11/Scrapyard -10/Materials (discovered 3 exits: [*Mat x3]) History --------- Turn | Location | Event 2 | -11/Scrapyard | Met Revision 17 14 | -11/Scrapyard | Discovered new exit (range 16) 113 | -11/Scrapyard | Entered Materials 303 | -10/Materials | Build established: Mutant 405 | -10/Materials | Discovered new exit (range 10) 685 | -10/Materials | Discovered new exit (range 16) 1562 | -10/Materials | Core integrity fell below 50% 1940 | -10/Materials | Discovered new exit (range 5) 2184 | -10/Materials | Crushed by falling debris 2184 | -10/Materials | Smashed by cave-in Last Messages --------------- 02165_ System corrupted: Component data lost. 02167_ K-01 Serf collects debris. 02173_ U-05 Engineer lays Concrete. 02174_ K-01 Serf collects debris. 02175_ U-05 Engineer builds a Wall. 02177_ U-05 Engineer lays Concrete. 02179_ K-01 Serf collects debris. 02179_ U-05 Engineer builds a Wall. 02180_ U-05 Engineer lays Concrete. 02181_ System corrupted: Matter fused (-5). 02181_ U-05 Engineer lays Concrete. 02183_ W-16 Scout destroyed. 02184_ The unstable cave ceiling collapses. 02184_ Crushed by falling debris. 02184_ Flight Unit destroyed. 02184_ System corrupted by crushing effect (+4). 02184_ Grenade Launcher destroyed. 02184_ System corrupted by crushing effect (+2). 02184_ Sml. Laser destroyed. 02184_ System corrupted by crushing effect (+5). Map ----- +----------------------------------------------------+ | """ # ##########+####??????? ????????????? | | "" # # #?#??????????????????? | | """ # # #???#????????????????? | | "" # # #?#?????? ???????????? | | """ + + ##???????????????????? | | """ # # #???#????????????????? | | """ # # #??????? ????????????? | | " # #######+#######??#????? #??????????? | | # # ?? ## ############# #??????????? | | # # ?? # +??????????? | | # # ? # ^ #??????????? | | ###### #????+ =! #??????????? | | T # ??# =! ####+#???????????????? | | #????# =! #????????????????????? | | #? ? # #????????????????????? | | #????# #????????????????????? | | # ? # """ #??? ????????????????? | | #????# """ #? ????? ???? ???????? | | ##??## """ #???? ???????????????? | | #??#?# ^ #?? ????? ??????????? | | ######w #########????????????? | | #? ??????????? | | % ###### < #????????????? | | #?#### ^^ #????????????? | | ##???####+######+## ^^###? ??????????? | | ? ? + # k u @ #??????????????? | | ##??### # u #??????????????? | | #????##! # #?????????????? | | +###???## """ # "" #?????????????? | | #??#?# """ # """ # ##????????????? | | ####?# """ # """ # * ????????????? | | #??##+############ ???????????? | | ##??# #########??# ??????????? | | ##### ## #??## # ?????????? | | #?## ## "" #???? # ????????? | | ############ ## "" #????"" ? !???????? | | T" #????""" #? !???????? | | + "" #????""" +? #?????????? | | # "" #??????? #?????????????? | | ############# # #??????????????????????? | | #############+########??????????????????????? | | #??????# ##??????????????????????????? | | ######## ! #####???????????????????????? | | # # #???????????????????????? | | # # #???????????????????????? | | # ! # #???????????????????????? | | +### # # #???????????????????????? | | # # # #???#######?????????????? | | # < # # #???# #?????????????? | | # # # #???# """ #?????????????? | +----------------------------------------------------+ Best States ------------- Heat Dissipation 25 Energy Generation 10 Energy Capacity 125 Matter Stores 300 Matter Capacity 300 Sight Range 16 Terrain Scan Range 14 Terrain Scan Density 10 Evasion (%) 40 Recoil Reduction 2 Item Schematics ----------------- None Robot Schematics ------------------ None Fabricated ------------ Nothing Alien Tech Used ----------------- None Achievements -------------- None Challenges ------------ None Game ------ Seed LargeAutogunImmobilizer Manual? 0 Play Time 00:10:19 Cumulative 12.1 hours Start 2024.04.04 @ 17:38:46 End 2024.04.04 @ 17:47:52 Sessions 1 Manual Loads 0 Difficulty Rogue Special Mode None Game No. 52 Rogue 52 Adventurer 0 Explorer 0 Win Type - Total 0 Types 0/0/0/0/0/0/0/0/0 Lore% 9 Gallery% 16 Achievement% 14 Wizard Run 0 Options --------- Layout 1 ASCII 0 Keyboard 1 Movement Arrows Keybinds 0 Fullscreen 1 Font 24/Smallcaps Map View 50x35 Zoom Use 0% Tactical HUD 1 Map Filters NONE Filters NONE Steam 1 RUN: 31ff8f2d-1193-4417-b64c-f17985ad4648